fUST/lending_fUST_20260201
["ID","MTS","AMOUNT","RATE_DAILY","PERIOD"]
[404165489,1769892639144,-504.3433977,0.00013699,2]
[404165490,1769892639153,-500.0,0.00013699,2]
[404165491,1769892639163,-500.0,0.00013699,2]
[404165492,1769892639174,-500.0,0.00013699,2]
[404165493,1769892639185,-500.0,0.00013699,2]
[404165494,1769892639195,-500.0,0.00013699,2]
[404165495,1769892639204,-500.0,0.00013699,2]
[404165496,1769892639214,-505.40496948,0.00013699,2]
[404165497,1769892639224,-160.75417313,0.00013699,2]
[404165498,1769892639233,-249.29739139,0.00013699,2]
[404165499,1769892639243,-500.0,0.00013699,2]
[404165500,1769892639253,-500.0,0.00013699,2]
[404165501,1769892639262,-500.0,0.00013699,2]
[404165502,1769892639271,-445.98241214,0.00013699,2]
[404165503,1769892639280,-500.0,0.00013699,2]
[404165504,1769892639290,-500.0,0.00013699,2]
[404165505,1769892639300,-500.0,0.00013699,2]
[404165506,1769892639310,-500.0,0.00013699,2]
[404165508,1769892639320,-165.66799311,0.00013699,2]
[404165509,1769892639330,-158.41698519,0.00013699,2]
[404165510,1769892639340,-500.0,0.00013699,2]
[404165511,1769892639349,-500.69178235,0.00013699,2]
[404165512,1769892639359,-500.0,0.00013699,2]
[404165513,1769892639370,-500.0,0.00013699,2]
[404165514,1769892639379,-243.83175688,0.00013699,2]
[404165515,1769892639388,-500.0,0.00013699,2]
[404165516,1769892639397,-500.0,0.00013699,2]
[404165517,1769892639407,-502.71899874,0.00013699,2]
[404165518,1769892639417,-500.0,0.00013699,2]
[404165519,1769892639427,-532.3582484,0.00013699,2]
[404165520,1769892639518,-445.43067652,0.00013699,2]
[404165521,1769892639530,-543.71404472,0.00013699,2]
[404165523,1769892639540,-500.0,0.00013699,2]
[404165526,1769892639550,-500.0,0.00013699,2]
[404165529,1769892639560,-500.0,0.00013699,2]
[404165532,1769892639571,-500.0,0.00013699,2]
[404165534,1769892639581,-500.0,0.00013699,2]
[404165536,1769892639590,-500.0,0.00013699,2]
[404165539,1769892639599,-500.0,0.00013699,2]
[404165541,1769892639607,-500.0,0.00013699,2]
[404165544,1769892639616,-500.0,0.00013699,2]
[404165545,1769892639626,-500.0,0.00013699,2]
[404165546,1769892639637,-500.0,0.00013699,2]
[404165547,1769892639646,-500.0,0.00013699,2]
[404165548,1769892639655,-500.0,0.00013699,2]
[404165549,1769892639664,-500.0,0.00013699,2]
[404165550,1769892639673,-500.0,0.00013699,2]
[404165552,1769892639683,-506.3516212,0.00013699,2]
[404165554,1769892639692,-500.0,0.00013819,2]
[404165556,1769892639701,-940.96392399,0.00013821,2]
[404165558,1769892639711,-1000.0,0.00013821,2]
[404165560,1769892639720,-338.45854352,0.00013821,2]
[404165562,1769892639729,-1000.0,0.00013821,2]
[404165563,1769892639738,-500.0,0.00013821,2]
[404165564,1769892639747,-500.0,0.00013821,2]
[404165565,1769892639756,-500.0,0.00013821,2]
[404165567,1769892639765,-1000.0,0.00013821,2]
[404165569,1769892639774,-559.33358307,0.00013821,2]
[404165572,1769892639784,-1000.0,0.00013821,2]
[404165573,1769892639795,-500.0,0.00013821,2]
[404165575,1769892639805,-768.5208145,0.00013948,2]
[404165577,1769892639814,-500.0,0.00013971,2]
[404165579,1769892639823,-300.0,0.00013972,2]
[404165581,1769892639832,-300.0,0.00013972,2]
[404165583,1769892639842,-300.0,0.00013972,2]
[404165585,1769892639852,-300.0,0.00013972,2]
[404165587,1769892639861,-300.0,0.00013972,2]
[404165589,1769892639872,-300.0,0.00013972,2]
[404165591,1769892639881,-300.0,0.00013972,2]
[404165593,1769892639892,-300.0,0.00013972,2]
[404165595,1769892639901,-300.0,0.00013972,2]
[404165597,1769892639910,-300.0,0.00013972,2]
[404165599,1769892639919,-300.0,0.00013972,2]
[404165601,1769892639928,-300.0,0.00013972,2]
[404165603,1769892639937,-300.0,0.00013972,2]
[404165605,1769892639946,-300.0,0.00013972,2]
[404165607,1769892639955,-300.0,0.00013972,2]
[404165609,1769892639964,-600.0,0.00013972,2]
[404165611,1769892639973,-151.0,0.00014,2]
[404165613,1769892639984,-547.98655577,0.00014246,2]
[404165615,1769892639993,-1000.0,0.00014247,2]
[404165617,1769892640002,-500.0,0.00014247,2]
[404165619,1769892640012,-502.67054401,0.00014247,2]
[404165621,1769892640021,-1002.37216285,0.00014247,2]
[404165623,1769892640030,-1002.0914091,0.00014247,2]
[404165625,1769892640039,-589.45287422,0.00014247,2]
[404165627,1769892640048,-502.99878118,0.00014247,2]
[404165629,1769892640057,-1000.0,0.00014247,2]
[404165631,1769892640066,-842.25454897,0.00014247,2]
[404165633,1769892640075,-1000.0,0.00014247,2]
[404165635,1769892640085,-443.51307087,0.00014247,2]
[404165637,1769892640094,-402.53936214,0.00014247,2]
[404165639,1769892640103,-158.68078088,0.00014247,2]
[404165641,1769892640112,-1000.0,0.00014247,2]
[404165643,1769892640121,-500.0,0.00014247,2]
[404165645,1769892640130,-523.45765406,0.00014247,2]
[404165647,1769892640139,-332.41054116,0.00014368,2]
[404165649,1769892640148,-1500.0,0.00014368,2]
[404165650,1769892640157,-420.0,0.00014551,2]
[404165652,1769892640166,-1680.0,0.00014599,2]
[404165654,1769892640175,-348.473489,0.00014795,2]
[404165657,1769892640186,-1500.0,0.00014795,2]
[404165659,1769892640195,-1500.0,0.00014795,2]
[404165661,1769892640204,-1500.0,0.00014795,2]
[404165662,1769892640213,-2000.0,0.00014916,2]
[404165664,1769892640222,-10873.52151875,0.00015,2]
[404165667,1769892640235,-407.89,0.00015,2]
[404165669,1769892640246,-3718.58848125,0.00015,2]
[404165671,1769892640255,-201.70588657,0.00015068,2]
[404165673,1769892640264,-500.0,0.00015128,2]
[404165675,1769892640272,-500.0,0.00015128,2]
[404165677,1769892640281,-500.0,0.00015128,2]
[404165679,1769892640290,-500.0,0.00015128,2]
[404165681,1769892640299,-38921.80784863,0.00015129,2]
[404165683,1769892640308,-263.0102792,0.00015129,2]
[404165685,1769892640317,-31686.72743199,0.00015129,2]
[404165687,1769892640327,-281.9340517,0.00015137,2]
[404165689,1769892640335,-413.86554513,0.00015272,2]
[404165691,1769892640344,-6892.42,0.00015342,2]
[404165693,1769892640353,-10000.0,0.00015342,2]
[404165695,1769892640361,-367.01973863,0.00015342,2]
[404165697,1769892640370,-720.0,0.00015369,2]
[404165699,1769892640379,-680.2,0.00015442,2]
[404165701,1769892640389,-5179.3,0.00015442,2]
[404165703,1769892640398,-170.14328444,0.00015464,2]
[404165705,1769892640407,-332.93810199,0.00015542,2]
[404165707,1769892640416,-500.0,0.00015542,2]
[404165709,1769892640425,-500.0,0.00015542,2]
[404165711,1769892640434,-500.0,0.00015542,2]
[404165713,1769892640443,-500.0,0.00015542,2]
[404165715,1769892640451,-544.76043412,0.00015647,2]
[404165717,1769892640460,-500.0,0.00015647,2]
[404165719,1769892640469,-500.0,0.00015647,2]
[404165721,1769892640478,-500.0,0.00015842,2]
[404165723,1769892640487,-500.0,0.00015842,2]
[404165725,1769892640496,-587.0,0.00015953,2]
[404165727,1769892640505,-2351.0,0.00016059,2]
[404165729,1769892640516,-151.0,0.000161,2]
[404165731,1769892640526,-500.0,0.00016437,2]
[404165733,1769892640534,-393.24,0.00016438,2]
[404165735,1769892640544,-393.24,0.00016438,2]
[404165737,1769892640553,-393.24,0.00016438,2]
[404165739,1769892640562,-393.24,0.00016438,2]
[404165741,1769892640571,-393.24,0.00016438,2]
[404165743,1769892640579,-393.24,0.00016438,2]
[404165745,1769892640588,-393.24,0.00016438,2]
[404165747,1769892640598,-393.24,0.00016438,2]
[404165748,1769892640608,-393.24,0.00016438,2]
[404165750,1769892640618,-393.24,0.00016438,2]
[404165753,1769892640628,-393.24,0.00016438,2]
[404165755,1769892640640,-393.24,0.00016438,2]
[404165756,1769892640649,-393.24,0.00016438,2]
[404165757,1769892640657,-393.24,0.00016438,2]
[404165758,1769892640666,-393.24,0.00016438,2]
[404165759,1769892640675,-393.24,0.00016438,2]
[404165760,1769892640683,-393.24,0.00016438,2]
[404165761,1769892640693,-393.24,0.00016438,2]
[404165762,1769892640701,-393.24,0.00016438,2]
[404165763,1769892640710,-393.24,0.00016438,2]
[404165764,1769892640719,-393.24,0.00016438,2]
[404165765,1769892640728,-393.24,0.00016438,2]
[404165766,1769892640737,-393.24,0.00016438,2]
[404165767,1769892640746,-393.44128375,0.00016438,2]
[404165768,1769892640756,-384.68618435,0.00016438,2]
[404165769,1769892640765,-15000.0,0.000165,2]
[404165770,1769892640774,-281.9340517,0.00016688,2]
[404165771,1769892640783,-864.0,0.00016906,2]
[404165772,1769892640793,-476.99757743,0.00017272,2]
[404165773,1769892640804,-151.0,0.000173,2]
[404165774,1769892640813,-823.0,0.0001749,2]
[404165775,1769892640821,-2931.71587053,0.00017543,2]
[404165776,1769892640830,-500.0,0.00017626,2]
[404165778,1769892640840,-213.08918261,0.00017626,2]
[404165780,1769892640850,-3292.0,0.00017665,2]
[404165781,1769892640861,-500.0,0.00017719,2]
[404165783,1769892640872,-500.0,0.00017719,2]
[404165785,1769892640881,-500.0,0.00017719,2]
[404165787,1769892640889,-500.0,0.00017719,2]
[404165789,1769892640898,-500.0,0.00017719,2]
[404165790,1769892640907,-389.93748134,0.00017719,2]
[404165791,1769892640916,-15000.0,0.00018,2]
[404165792,1769892640925,-151.0,0.000182,2]
[404165793,1769892640935,-281.9340517,0.0001824,2]
[404165794,1769892640945,-250.0,0.00018367,2]
[404165795,1769892640954,-1000.0,0.00018596,2]
[404165796,1769892640963,-303.10001603,0.000189,2]
[404165797,1769892640972,-151.55000812,0.00019089,2]
[404165798,1769892640981,-1152.0,0.00019175,2]
[404165799,1769892640990,-947.77,0.000192,2]
[404165801,1769892640999,-157.61,0.000192,2]
[404165803,1769892641008,-169.17,0.000192,2]
[404165805,1769892641018,-540.12960974,0.00019272,2]
[404165807,1769892641027,-168.0,0.00019283,2]
[404165809,1769892641036,-179.0,0.00019431,2]
[404165811,1769892641046,-151.0,0.000196,2]
[404165813,1769892641055,-168.0,0.00019615,2]
[404165815,1769892641064,-168.0,0.00019655,2]
[404165816,1769892641073,-168.0,0.000199,2]
[404165817,1769892641082,-168.0,0.0002018,2]
[404165818,1769892641091,-151.0,0.000203,4]
[404165819,1769892641099,-168.0,0.00020406,2]
[404165820,1769892641108,-1000.0,0.00020456,2]
[404165821,1769892641117,-244.0,0.00020456,2]
[404165822,1769892641126,-168.0,0.00020498,2]
[404165823,1769892641134,-703.803098,0.00020548,2]
[404165824,1769892641143,-168.0,0.00020921,2]
[404165825,1769892641152,-30836.0,0.00021,2]
[404165826,1769892641161,-168.0,0.00021,2]
[404165827,1769892641170,-1613.0,0.00021023,2]
[404165828,1769892641178,-157.59950526,0.00021134,2]
[404165829,1769892641187,-178.42008024,0.00021143,2]
[404165830,1769892641196,-603.26164205,0.00021272,2]
[404165831,1769892641205,-151.0,0.000219,4]
[404165832,1769892641214,-155.88,0.000223,7]
[404165833,1769892641223,-151.0,0.000224,8]
[404165834,1769892641231,-1000.0,0.00022501,10]
[404165835,1769892641240,-492.0,0.00022501,10]
[404165836,1769892641249,-172.67072167,0.00022959,8]
[404165837,1769892641258,-2258.0,0.00023049,2]
[404165838,1769892641267,-666.39367436,0.00023272,2]
[404165840,1769892641276,-151.0,0.000242,7]
[404165842,1769892641285,-151.0,0.000245,7]
[404165844,1769892641295,-172.0,0.00024603,13]
[404165846,1769892641304,-1000.0,0.00024752,10]
[404165848,1769892641313,-791.0,0.00024752,10]
[404165850,1769892641322,-20525.6006993,0.000249,2]
[404165852,1769892641331,-3162.0,0.0002527,2]
[404165854,1769892641340,-729.52570666,0.00025272,2]
[404165856,1769892641349,-1041.66666667,0.00025299,2]
[404165866,1769892641428,-160.0,0.000253,2]
[404165868,1769892641436,-947.77,0.000261,14]
[404165870,1769892641445,-151.0,0.000265,17]
[404165872,1769892641455,-487.0,0.000265,2]
[404165874,1769892641465,-487.0,0.000265,2]
[404165876,1769892641473,-487.0,0.000265,2]
[404165878,1769892641482,-896.56,0.000265,2]
[404165880,1769892641491,-151.0,0.000266,19]
[404165882,1769892641500,-189.0,0.00026795,22]
[404165883,1769892641509,-1000.0,0.00027227,30]
[404165886,1769892641521,-1000.0,0.00027227,30]
[404165888,1769892641532,-792.65773897,0.00027272,2]
[404165890,1769892641543,-2807.0,0.00027705,2]
[404165892,1769892641555,-900.0,0.00027825,7]
[404165893,1769892641566,-600.0,0.00027856,7]
[404165895,1769892641576,-500.0,0.00027893,7]
[404165897,1769892641586,-900.0,0.00027927,7]
[404165899,1769892641595,-600.0,0.00027965,7]
[404165901,1769892641605,-160.0,0.00028,7]
[404165903,1769892641614,-160.0,0.00028,3]
[404165905,1769892641623,-160.0,0.00028,7]
[404165907,1769892641633,-160.0,0.00028,3]
[404165909,1769892641643,-600.0,0.00028147,7]
[404165911,1769892641651,-500.0,0.0002815,7]
[404165913,1769892641660,-600.0,0.0002817,7]
[404165915,1769892641670,-500.0,0.00028186,7]
[404165917,1769892641679,-500.0,0.00028201,7]
[404165920,1769892641690,-500.0,0.00028263,7]
[404165922,1769892641701,-500.0,0.00028321,7]
[404165924,1769892641714,-500.0,0.00028434,7]
[404165926,1769892641723,-500.0,0.00028446,7]
[404165928,1769892641732,-600.0,0.00028513,7]
[404165930,1769892641741,-500.0,0.00028552,7]
[404165931,1769892641749,-900.0,0.00028574,7]
[404165933,1769892641758,-900.0,0.0002858,7]
[404165935,1769892641768,-151.62002564,0.00028582,7]
[404165936,1769892641777,-500.0,0.00028597,7]
[404165937,1769892641786,-600.0,0.00028606,7]
[404165938,1769892641798,-500.0,0.00028615,7]
[404165939,1769892641807,-900.0,0.00028621,7]
[404165940,1769892641816,-600.0,0.00028633,7]
[404165941,1769892641825,-500.0,0.00028672,7]
[404165942,1769892641834,-151.0,0.000287,18]
[404165943,1769892641845,-600.0,0.00028731,7]
[404165944,1769892641855,-900.0,0.00028735,7]
[404165945,1769892641864,-178.92208645,0.0002874,5]
[404165946,1769892641876,-157.43607312,0.0002874,5]
[404165947,1769892641885,-151.0,0.000288,20]
[404165948,1769892641895,-900.0,0.00028801,7]
[404165949,1769892641907,-900.0,0.00028858,7]
[404165950,1769892641916,-500.0,0.00028915,7]
[404165951,1769892641926,-900.0,0.00028944,7]
[404165952,1769892641935,-900.0,0.00028971,7]
[404165953,1769892641944,-166.0,0.00028986,32]
[404165954,1769892641953,-3420.93344989,0.00028988,2]
[404165955,1769892641962,-900.0,0.00028998,7]
[404165956,1769892641971,-500.0,0.00029012,7]
[404165957,1769892641980,-600.0,0.00029023,7]
[404165958,1769892641989,-900.0,0.00029053,7]
[404165959,1769892641998,-900.0,0.00029066,7]
[404165960,1769892642008,-500.0,0.00029141,7]
[404165961,1769892642016,-900.0,0.00029192,7]
[404165962,1769892642025,-500.0,0.00029199,7]
[404165963,1769892642034,-500.0,0.00029211,7]
[404165964,1769892642043,-500.0,0.00029213,7]
[404165965,1769892642052,-855.78977128,0.00029272,2]
[404165966,1769892642061,-600.0,0.00029321,7]
[404165967,1769892642069,-500.0,0.0002939,7]
[404165968,1769892642078,-900.0,0.0002941,7]
[404165969,1769892642087,-900.0,0.00029413,7]
[404165970,1769892642096,-500.0,0.0002967,7]
[404165971,1769892642105,-600.0,0.00029715,7]
[404165972,1769892642114,-600.0,0.00029759,7]
[404165973,1769892642123,-900.0,0.0002979,7]
[404165974,1769892642132,-900.0,0.00029791,7]
[404165975,1769892642140,-900.0,0.00029838,7]
[404165976,1769892642152,-600.0,0.00029873,7]
[404165977,1769892642161,-1000.0,0.00029949,30]
[404165978,1769892642170,-1000.0,0.00029949,30]
[404165979,1769892642179,-579.0,0.00029949,30]
[404165980,1769892642187,-600.0,0.0002995,7]
[404165981,1769892642197,-900.0,0.0003006,7]
[404165982,1769892642206,-600.0,0.0003014,7]
[404165983,1769892642215,-162.0,0.00030187,120]
[404165984,1769892642225,-237.0,0.00030187,120]
[404165985,1769892642235,-162.0,0.00030187,120]
[404165986,1769892642244,-157.61,0.000302,7]
[404165987,1769892642253,-500.0,0.00030275,7]
[404165988,1769892642262,-160.0,0.0003035,7]
[404165989,1769892642271,-500.0,0.00030355,7]
[404165990,1769892642280,-600.0,0.00030363,7]
[404165991,1769892642291,-600.0,0.00030364,7]
[404165992,1769892642300,-600.0,0.00030368,7]
[404165993,1769892642309,-600.0,0.00030389,7]
[404165994,1769892642318,-947.77,0.000304,14]
[404165996,1769892642327,-500.0,0.00030429,7]
[404165997,1769892642336,-900.0,0.00030459,7]
[404165998,1769892642345,-238.11817,0.000305,120]
[404165999,1769892642355,-242.81521,0.000305,120]
[404166000,1769892642364,-200.0,0.000305,120]
[404166002,1769892642373,-600.0,0.00030527,7]
[404166004,1769892642381,-624.19749998,0.00030542,7]
[404166005,1769892642390,-500.0,0.00030568,7]
[404166006,1769892642401,-500.0,0.00030577,7]
[404166007,1769892642411,-600.0,0.00030596,7]
[404166008,1769892642420,-178.786,0.00030633,26]
[404166009,1769892642429,-290.758,0.00030633,26]
[404166010,1769892642438,-900.0,0.00030655,7]
[404166011,1769892642447,-500.0,0.00030667,7]
[404166012,1769892642456,-900.0,0.00030735,7]
[404166013,1769892642465,-500.0,0.00030797,7]
[404166014,1769892642474,-151.0,0.000308,14]
[404166015,1769892642483,-600.0,0.0003083,7]
[404166016,1769892642491,-600.0,0.00030846,7]
[404166017,1769892642500,-500.0,0.00030885,7]
[404166018,1769892642509,-600.0,0.00030964,7]
[404166019,1769892642519,-171.83463275,0.00031,120]
[404166020,1769892642528,-260.78391882,0.00031,120]
[404166021,1769892642537,-201.2716677,0.00031,120]
[404166022,1769892642546,-164.57044202,0.00031,120]
[404166023,1769892642555,-184.3161173,0.00031,120]
[404166024,1769892642564,-206.24088797,0.00031,120]
[404166025,1769892642573,-239.968,0.00031,120]
[404166026,1769892642581,-220.84246738,0.00031,120]
[404166027,1769892642591,-225.56607562,0.00031,120]
[404166028,1769892642599,-220.39809165,0.00031,120]
[404166029,1769892642608,-236.27182783,0.00031,120]
[404166030,1769892642617,-162.93564151,0.00031,120]
[404166031,1769892642626,-184.52113141,0.00031,120]
[404166032,1769892642635,-151.0,0.000311,18]
[404166033,1769892642646,-1055.95088949,0.00031124,7]
[404166034,1769892642655,-500.0,0.0003114,7]
[404166035,1769892642664,-500.0,0.00031162,7]
[404166036,1769892642673,-500.0,0.00031171,7]
[404166037,1769892642682,-180.0,0.00031178,44]
[404166038,1769892642691,-900.0,0.00031194,7]
[404166039,1769892642701,-900.0,0.00031204,7]
[404166040,1769892642710,-799.27363586,0.00031223,7]
[404166041,1769892642719,-1552.8439703,0.00031227,7]
[404166042,1769892642730,-918.92180359,0.00031272,2]
[404166043,1769892642740,-500.0,0.00031564,120]
[404166044,1769892642750,-162.0,0.00031696,120]
[404166045,1769892642760,-237.0,0.00031696,120]
[404166046,1769892642770,-162.0,0.00031696,120]
[404166047,1769892642779,-171.83463275,0.000319,120]
[404166048,1769892642789,-201.2716677,0.000319,120]
[404166049,1769892642801,-225.56607562,0.000319,120]
[404166050,1769892642811,-220.39809165,0.000319,120]
[404166051,1769892642820,-236.27182783,0.000319,120]
[404166052,1769892642831,-3420.93344989,0.0003209,2]
[404166053,1769892642842,-4389.790337,0.000321,2]
[404166054,1769892642852,-4389.79033697,0.000321,2]
[404166055,1769892642863,-4389.79033697,0.000321,2]
[404166056,1769892642875,-4389.79033697,0.000321,2]
[404166057,1769892642884,-238.11817,0.000322,120]
[404166058,1769892642896,-6054.0974,0.0003222,30]
[404166059,1769892642905,-151.0,0.000323,16]
[404166060,1769892642915,-562.66,0.00032876,10]
[404166061,1769892642924,-562.66,0.00032876,10]
[404166062,1769892642933,-562.66,0.00032876,10]
[404166063,1769892642942,-562.66,0.00032876,10]
[404166064,1769892642952,-562.66,0.00032876,10]
[404166065,1769892642962,-562.66,0.00032876,10]
[404166066,1769892642972,-562.66,0.00032876,10]
[404166067,1769892642981,-562.66,0.00032876,10]
[404166068,1769892642990,-562.66,0.00032876,10]
[404166069,1769892643001,-562.66,0.00032876,10]
[404166070,1769892643012,-562.66,0.00032876,10]
[404166071,1769892643022,-562.66,0.00032876,10]
[404166072,1769892643032,-562.66,0.00032876,10]
[404166073,1769892643042,-562.66,0.00032876,10]
[404166074,1769892643053,-562.66,0.00032876,10]
[404166075,1769892643063,-562.66,0.00032876,10]
[404166076,1769892643072,-562.66,0.00032876,10]
[404166077,1769892643081,-562.66,0.00032876,10]
[404166078,1769892643089,-562.66,0.00032876,10]
[404166079,1769892643098,-562.66,0.00032876,10]
[404166080,1769892643107,-562.66,0.00032876,10]
[404166081,1769892643117,-562.66,0.00032876,10]
[404166082,1769892643127,-562.66,0.00032876,10]
[404166083,1769892643136,-562.84452176,0.00032876,10]
[404166084,1769892643147,-1847.42,0.00032877,10]
[404166085,1769892643156,-171.83463275,0.000329,120]
[404166087,1769892643164,-151.0,0.000329,11]
[404166088,1769892643236,-151.0,0.000329,12]
[404166089,1769892643247,-1000.0,0.00032944,30]
[404166090,1769892643258,-993.0,0.00032944,30]
[404166091,1769892643268,-560.25926956,0.000332,117]
[404166092,1769892643278,-982.05383589,0.00033272,120]
[404166093,1769892643287,-162.0,0.00033281,120]
[404166094,1769892643296,-237.0,0.00033281,120]
[404166095,1769892643306,-162.0,0.00033281,120]
[404166096,1769892643316,-500.0,0.0003333,120]
[404166098,1769892643325,-151.0,0.000334,12]
[404166099,1769892643334,-151.0,0.000335,14]
[404166100,1769892643344,-562.32,0.00033698,30]
[404166101,1769892643355,-1180.83090806,0.0003374,7]
[404166102,1769892643365,-1669.70757106,0.0003374,7]
[404166104,1769892643376,-3420.93344989,0.00034022,2]
[404166105,1769892643385,-379.43,0.00034031,120]
[404166106,1769892643395,-22269.6810255,0.00034032,2]
[404166108,1769892643404,-190.17419619,0.0003411,7]
[404166110,1769892643413,-250.0,0.0003411,7]
[404166111,1769892643422,-500.0,0.0003411,7]
[404166112,1769892643431,-500.0,0.0003411,7]
[404166113,1769892643441,-151.0,0.000342,20]
[404166114,1769892643450,-947.77,0.000342,30]
[404166116,1769892643459,-500.0,0.00034247,7]
[404166118,1769892643469,-500.0,0.00034247,7]
[404166120,1769892643479,-210.4276814,0.000343,2]
[404166121,1769892643488,-611.50039414,0.00034384,7]
[404166122,1769892643497,-500.0,0.00034384,7]
[404166123,1769892643507,-27367.4675991,0.0003439,2]
[404166124,1769892643516,-390102.10930813,0.000344,10]
[404166125,1769892643526,-1041.66666667,0.000344,10]
[404166126,1769892643535,-5010.36,0.000344,14]
[404166127,1769892643546,-177.0,0.00034466,69]
[404166128,1769892643556,-3420.93344989,0.0003449,2]
[404166129,1769892643567,-5140.15748372,0.000345,120]
[404166130,1769892643578,-562.32,0.0003452,31]
[404166131,1769892643588,-500.0,0.00034521,7]
[404166132,1769892643598,-510.19747855,0.00034575,5]
[404166133,1769892643609,-500.0,0.00034658,7]
[404166134,1769892643619,-188.0,0.00034746,120]
[404166135,1769892643629,-500.0,0.00034795,7]
[404166136,1769892643639,-151.0,0.000348,20]
[404166137,1769892643648,-500.0,0.00034932,7]
[404166138,1769892643657,-162.0,0.00034945,120]
[404166139,1769892643667,-1600.0,0.00035,30]
[404166140,1769892643678,-273.84,0.00035051,2]
[404166141,1769892643688,-500.0,0.00035069,7]
[404166142,1769892643697,-501.16702128,0.00035206,7]
[404166143,1769892643707,-1045.1858682,0.00035272,120]
[404166144,1769892643716,-562.32,0.00035342,32]
[404166145,1769892643726,-151.0,0.000354,19]
[404166146,1769892643735,-238.11817,0.000356,120]
[404166147,1769892643744,-188.0,0.0003566,120]
[404166148,1769892643754,-151.0,0.000357,14]
[404166149,1769892643764,-1123.81162973,0.00036,120]
[404166150,1769892643773,-1041.66666667,0.00036,120]
[404166151,1769892643782,-3538.603771,0.00036,60]
[404166152,1769892643794,-2477.022639,0.00036,60]
[404166153,1769892643804,-151.0,0.000361,14]
[404166154,1769892643813,-562.32,0.00036164,33]
[404166155,1769892643824,-205.27402056,0.0003621,2]
[404166156,1769892643833,-266.98854847,0.0003624,2]
[404166157,1769892643846,-4969.0374936,0.00036368,2]
[404166158,1769892643856,-5010.36,0.000364,14]
[404166159,1769892643866,-151.0,0.000367,12]
[404166160,1769892643876,-1108.7421317,0.0003689,2]
[404166161,1769892643885,-5542.0,0.00036979,2]
[404166162,1769892643895,-562.32,0.00036986,34]
[404166163,1769892643904,-273.82022084,0.00036999,120]
[404166164,1769892643914,-2044.48449799,0.00037,2]
[404166165,1769892643924,-165.72413869,0.00037,120]
[404166166,1769892643934,-1410.16844331,0.00037261,2]
[404166167,1769892643943,-1108.31790051,0.00037272,120]
[404166168,1769892643953,-238.11817,0.000373,120]
[404166169,1769892643962,-3420.93344989,0.00037347,3]
[404166170,1769892643971,-973.5734388,0.00037357,20]
[404166171,1769892643981,-637.67867194,0.00037357,20]
[404166172,1769892643990,-151.14235464,0.00037364,2]
[404166173,1769892643999,-150.0,0.00037364,2]
[404166174,1769892644009,-201.4653447,0.00037364,2]
[404166175,1769892644018,-150.0,0.00037364,2]
[404166176,1769892644027,-150.0,0.00037364,2]
[404166177,1769892644036,-211.02010196,0.00037364,2]
[404166178,1769892644046,-500.0,0.00037364,2]
[404166179,1769892644056,-150.0,0.00037364,2]
[404166180,1769892644065,-150.0,0.00037364,2]
[404166181,1769892644074,-500.0,0.00037364,2]